[Event "Titled Tuesday Blitz May 2 Late 2023"]
[White "Bortnyk, Mykola"]
[Black "Baskakov, Egor"]
[WhiteFideId "14120836"]
[BlackFideId "24197866"]
[WhiteElo "2582"]
[BlackElo "2212"]
[Result "0-1"]
[Round "11"]
[TimeControl "180+2"]
[Date "2023.05.02"]
[WhiteClock "0:00:04"]
[BlackClock "0:00:07"]

1. e4 {[%clk 0:03:00]}  c5 {[%clk 0:02:59]} 2. c3 {[%clk 0:03:01]}  Nf6 {[%clk 0:02:59]} 3. e5 {[%clk 0:03:01]}  Nd5 {[%clk 0:02:59]} 4. Nf3 {[%clk 0:03:01]}  Nc6 {[%clk 0:02:59]} 5. Bc4 {[%clk 0:03:01]}  Nb6 {[%clk 0:02:58]} 6. Bb3 {[%clk 0:03:02]}  g6 {[%clk 0:02:59]} 7. d4 {[%clk 0:02:59]}  cxd4 {[%clk 0:02:59]} 8. cxd4 {[%clk 0:02:52]}  Bg7 {[%clk 0:03:00]} 9. Qe2 {[%clk 0:02:52]}  d6 {[%clk 0:02:56]} 10. h3 {[%clk 0:02:49]}  O-O {[%clk 0:02:56]} 11. O-O {[%clk 0:02:49]}  Bf5 {[%clk 0:02:56]} 12. Rd1 {[%clk 0:02:46]}  Na5 {[%clk 0:02:42]} 13. Nc3 {[%clk 0:02:43]}  Rc8 {[%clk 0:02:38]} 14. Bg5 {[%clk 0:02:36]}  Re8 {[%clk 0:01:59]} 15. Bh4 {[%clk 0:02:19]}  Nxb3 {[%clk 0:01:55]} 16. axb3 {[%clk 0:02:19]}  a6 {[%clk 0:01:55]} 17. g4 {[%clk 0:02:02]}  Bd7 {[%clk 0:01:55]} 18. exd6 {[%clk 0:01:57]}  Bf6 {[%clk 0:01:50]} 19. dxe7 {[%clk 0:01:50]}  Bxe7 {[%clk 0:01:48]} 20. Bxe7 {[%clk 0:01:50]}  Rxe7 {[%clk 0:01:49]} 21. Qd3 {[%clk 0:01:47]}  Qc7 {[%clk 0:01:43]} 22. d5 {[%clk 0:01:42]}  Qf4 {[%clk 0:01:39]} 23. Re1 {[%clk 0:01:37]}  Rce8 {[%clk 0:01:35]} 24. Rxe7 {[%clk 0:01:34]}  Rxe7 {[%clk 0:01:36]} 25. Rd1 {[%clk 0:01:26]}  h5 {[%clk 0:01:33]} 26. Ne2 {[%clk 0:01:23]}  Qf6 {[%clk 0:01:29]} 27. d6 {[%clk 0:01:16]}  Re8 {[%clk 0:01:27]} 28. Ng3 {[%clk 0:00:55]}  hxg4 {[%clk 0:01:22]} 29. hxg4 {[%clk 0:00:54]}  Bxg4 {[%clk 0:01:22]} 30. Re1 {[%clk 0:00:53]}  Rxe1+ {[%clk 0:01:07]} 31. Nxe1 {[%clk 0:00:54]}  Qxb2 {[%clk 0:01:07]} 32. Nf3 {[%clk 0:00:38]}  Qf6 {[%clk 0:00:59]} 33. Nd2 {[%clk 0:00:34]}  Be6 {[%clk 0:00:53]} 34. Nde4 {[%clk 0:00:32]}  Qa1+ {[%clk 0:00:51]} 35. Kh2 {[%clk 0:00:32]}  Qe5 {[%clk 0:00:52]} 36. Kg1 {[%clk 0:00:26]}  Nd7 {[%clk 0:00:35]} 37. Qe3 {[%clk 0:00:21]}  f5 {[%clk 0:00:21]} 38. Ng5 {[%clk 0:00:19]}  Qxe3 {[%clk 0:00:21]} 39. fxe3 {[%clk 0:00:20]}  Bxb3 {[%clk 0:00:21]} 40. Kf2 {[%clk 0:00:18]}  a5 {[%clk 0:00:21]} 41. Ke2 {[%clk 0:00:16]}  a4 {[%clk 0:00:22]} 42. Kd2 {[%clk 0:00:16]}  a3 {[%clk 0:00:20]} 43. Kc3 {[%clk 0:00:17]}  Bd5 {[%clk 0:00:17]} 44. Nh3 {[%clk 0:00:15]}  b5 {[%clk 0:00:17]} 45. Nf4 {[%clk 0:00:13]}  b4+ {[%clk 0:00:17]} 46. Kc2 {[%clk 0:00:13]}  b3+ {[%clk 0:00:14]} 47. Kb1 {[%clk 0:00:13]}  Bf7 {[%clk 0:00:13]} 48. Nd3 {[%clk 0:00:09]}  Bc4 {[%clk 0:00:09]} 49. Nb4 {[%clk 0:00:09]}  b2 {[%clk 0:00:08]} 50. e4 {[%clk 0:00:02]}  f4 {[%clk 0:00:08]} 51. Nh1 {[%clk 0:00:03]}  g5 {[%clk 0:00:06]} 52. Nf2 {[%clk 0:00:04]}  Kf7 {[%clk 0:00:07]} 53. Ng4 {[%clk 0:00:04]}  Ke6 {[%clk 0:00:07]} 54. e5 {[%clk 0:00:04]}  Kf5 {[%clk 0:00:05]} 55. Nf2 {[%clk 0:00:02]}  Kxe5 {[%clk 0:00:05]} 56. Kc2 {[%clk 0:00:03]}  Kxd6 {[%clk 0:00:05]} 57. Ne4+ {[%clk 0:00:04]}  Ke5 {[%clk 0:00:04]} 58. Nxg5 {[%clk 0:00:05]}  Kf5 {[%clk 0:00:04]} 59. Nf3 {[%clk 0:00:05]}  Ne5 {[%clk 0:00:04]} 60. Nd2 {[%clk 0:00:05]}  Be6 {[%clk 0:00:04]} 61. Nb1 {[%clk 0:00:05]}  a2 {[%clk 0:00:04]} 62. Kxb2 {[%clk 0:00:05]}  axb1=Q+ {[%clk 0:00:03]} 63. Kxb1 {[%clk 0:00:06]}  Ke4 {[%clk 0:00:03]} 64. Kc2 {[%clk 0:00:06]}  f3 {[%clk 0:00:04]} 65. Kd2 {[%clk 0:00:06]}  Nc4+ {[%clk 0:00:04]} 66. Ke1 {[%clk 0:00:07]}  Kf4 {[%clk 0:00:03]} 67. Kf2 {[%clk 0:00:06]}  Ne5 {[%clk 0:00:03]} 68. Nc2 {[%clk 0:00:05]}  Ng4+ {[%clk 0:00:04]} 69. Ke1 {[%clk 0:00:05]}  f2+ {[%clk 0:00:04]} 70. Ke2 {[%clk 0:00:04]}  Bc4+ {[%clk 0:00:05]} 71. Kd2 {[%clk 0:00:04]}  f1=Q {[%clk 0:00:05]} 72. Nb4 {[%clk 0:00:05]}  Ne5 {[%clk 0:00:05]} 73. Kc3 {[%clk 0:00:06]}  Qe1+ {[%clk 0:00:04]} 74. Kd4 {[%clk 0:00:05]}  Qd2+ {[%clk 0:00:04]} 75. Kc5 {[%clk 0:00:05]}  Nd7+ {[%clk 0:00:04]} 76. Kxc4 {[%clk 0:00:05]}  Ke4 {[%clk 0:00:04]} 77. Kb3 {[%clk 0:00:04]}  Qg5 {[%clk 0:00:03]} 78. Na2 {[%clk 0:00:03]}  Kf3 {[%clk 0:00:03]} 79. Nc3 {[%clk 0:00:03]}  Nc5+ {[%clk 0:00:04]} 80. Kc4 {[%clk 0:00:04]}  Ne4 {[%clk 0:00:04]} 81. Nd5 {[%clk 0:00:05]}  Qe5 {[%clk 0:00:04]} 82. Nb4 {[%clk 0:00:04]}  Qc5+ {[%clk 0:00:04]} 83. Kb3 {[%clk 0:00:05]}  Nd2+ {[%clk 0:00:05]} 84. Ka4 {[%clk 0:00:04]}  Qc4 {[%clk 0:00:05]} 85. Ka5 {[%clk 0:00:04]}  Ne4 {[%clk 0:00:06]} 86. Na6 {[%clk 0:00:04]}  Nc5 {[%clk 0:00:06]} 87. Nc7 {[%clk 0:00:04]}  Nb3+ {[%clk 0:00:06]} 88. Kb6 {[%clk 0:00:05]}  Nd4 {[%clk 0:00:06]} 89. Na8 {[%clk 0:00:02]}  Qc6+ {[%clk 0:00:07]} 90. Ka7 {[%clk 0:00:03]}  Nb5+ {[%clk 0:00:07]} 91. Kb8 {[%clk 0:00:04]}  Qd7 {[%clk 0:00:07]} 0-1


[Site "https://www.chess.com"]

[Event "Titled Tuesday Blitz May 2 Late 2023"]
[White "Maurizzi, Marc`Andria"]
[Black "Terry, Renato"]
[WhiteFideId "36083534"]
[BlackFideId "3803457"]
[WhiteElo "2421"]
[BlackElo "2575"]
[Result "1-0"]
[Round "11"]
[TimeControl "180+2"]
[Date "2023.05.02"]
[WhiteClock "0:00:06"]
[BlackClock "0:00:01"]

1. e4 {[%clk 0:03:00]}  e6 {[%clk 0:02:58]} 2. d4 {[%clk 0:02:58]}  d5 {[%clk 0:02:58]} 3. Nd2 {[%clk 0:02:59]}  Be7 {[%clk 0:02:58]} 4. c3 {[%clk 0:02:59]}  c5 {[%clk 0:02:58]} 5. dxc5 {[%clk 0:02:58]}  Bxc5 {[%clk 0:02:59]} 6. Ngf3 {[%clk 0:02:58]}  Qb6 {[%clk 0:02:56]} 7. Qe2 {[%clk 0:02:58]}  Nf6 {[%clk 0:02:52]} 8. b4 {[%clk 0:02:57]}  dxe4 {[%clk 0:02:28]} 9. bxc5 {[%clk 0:02:23]}  exf3 {[%clk 0:02:27]} 10. Qxf3 {[%clk 0:02:23]}  Qxc5 {[%clk 0:02:25]} 11. Nc4 {[%clk 0:02:22]}  O-O {[%clk 0:01:43]} 12. Ba3 {[%clk 0:02:20]}  Qc7 {[%clk 0:01:39]} 13. Bxf8 {[%clk 0:02:17]}  Kxf8 {[%clk 0:01:40]} 14. Qg3 {[%clk 0:02:18]}  Qxg3 {[%clk 0:01:37]} 15. hxg3 {[%clk 0:02:18]}  h6 {[%clk 0:01:35]} 16. O-O-O {[%clk 0:02:13]}  Ke7 {[%clk 0:01:32]} 17. Rh4 {[%clk 0:02:07]}  Nc6 {[%clk 0:01:31]} 18. Be2 {[%clk 0:02:06]}  Bd7 {[%clk 0:01:21]} 19. Bf3 {[%clk 0:02:06]}  Rc8 {[%clk 0:01:19]} 20. Nd6 {[%clk 0:01:55]}  Rc7 {[%clk 0:01:19]} 21. Rc4 {[%clk 0:01:53]}  Nd5 {[%clk 0:01:14]} 22. Nb5 {[%clk 0:01:26]}  Nb6 {[%clk 0:01:02]} 23. Rf4 {[%clk 0:01:03]}  Rc8 {[%clk 0:01:01]} 24. Nd6 {[%clk 0:01:04]}  Rf8 {[%clk 0:00:59]} 25. Nxb7 {[%clk 0:01:04]}  Ne5 {[%clk 0:00:55]} 26. Nc5 {[%clk 0:01:04]}  Bb5 {[%clk 0:00:51]} 27. Rb4 {[%clk 0:01:01]}  Bc4 {[%clk 0:00:51]} 28. a4 {[%clk 0:00:35]}  Rc8 {[%clk 0:00:50]} 29. a5 {[%clk 0:00:35]}  Rxc5 {[%clk 0:00:31]} 30. axb6 {[%clk 0:00:35]}  axb6 {[%clk 0:00:32]} 31. Rxb6 {[%clk 0:00:36]}  Nd3+ {[%clk 0:00:09]} 32. Kd2 {[%clk 0:00:36]}  Nxf2 {[%clk 0:00:09]} 33. Rdb1 {[%clk 0:00:33]}  Re5 {[%clk 0:00:05]} 34. Rc6 {[%clk 0:00:30]}  Bd5 {[%clk 0:00:04]} 35. Rc7+ {[%clk 0:00:13]}  Kf6 {[%clk 0:00:05]} 36. Rf1 {[%clk 0:00:10]}  Kg5 {[%clk 0:00:01]} 37. Rxf2 {[%clk 0:00:10]}  Rf5 {[%clk 0:00:02]} 38. Ke3 {[%clk 0:00:09]}  Re5+ {[%clk 0:00:02]} 39. Kd2 {[%clk 0:00:07]}  Rf5 {[%clk 0:00:03]} 40. c4 {[%clk 0:00:08]}  Ba8 {[%clk 0:00:01]} 41. Ra7 {[%clk 0:00:07]}  Be4 {[%clk 0:00:01]} 42. Ke3 {[%clk 0:00:06]}  Bb1 {[%clk 0:00:01]} 43. Be2 {[%clk 0:00:06]}  Re5+ {[%clk 0:00:01]} 44. Kd2 {[%clk 0:00:06]} 1-0


[Site "https://www.chess.com"]

[Event "Titled Tuesday Blitz May 2 Late 2023"]
[White "Andreikin, Dmitry"]
[Black "Prohaszka, Peter"]
[WhiteFideId "4158814"]
[BlackFideId "726265"]
[WhiteElo "2736"]
[BlackElo "2626"]
[Result "1-0"]
[Round "11"]
[TimeControl "180+2"]
[Date "2023.05.02"]
[WhiteClock "0:00:43"]
[BlackClock "0:00:02"]

1. e4 {[%clk 0:03:00]}  c6 {[%clk 0:02:59]} 2. Bc4 {[%clk 0:02:59]}  d5 {[%clk 0:03:00]} 3. Bb3 {[%clk 0:03:00]}  dxe4 {[%clk 0:02:56]} 4. Qh5 {[%clk 0:03:00]}  g6 {[%clk 0:02:51]} 5. Qe2 {[%clk 0:03:00]}  Nf6 {[%clk 0:02:50]} 6. Nc3 {[%clk 0:03:00]}  Nbd7 {[%clk 0:02:44]} 7. Nxe4 {[%clk 0:02:55]}  Nxe4 {[%clk 0:02:44]} 8. Qxe4 {[%clk 0:02:56]}  Nc5 {[%clk 0:02:24]} 9. Qe5 {[%clk 0:02:50]}  Nxb3 {[%clk 0:02:24]} 10. axb3 {[%clk 0:02:50]}  Qd5 {[%clk 0:01:56]} 11. Qxd5 {[%clk 0:02:32]}  cxd5 {[%clk 0:01:57]} 12. d4 {[%clk 0:02:30]}  Bg7 {[%clk 0:01:51]} 13. c3 {[%clk 0:02:29]}  a5 {[%clk 0:01:50]} 14. h4 {[%clk 0:02:25]}  h6 {[%clk 0:01:46]} 15. Ne2 {[%clk 0:02:23]}  Bd7 {[%clk 0:01:30]} 16. Nf4 {[%clk 0:02:23]}  e6 {[%clk 0:01:30]} 17. Nd3 {[%clk 0:02:18]}  Bb5 {[%clk 0:01:25]} 18. Rh3 {[%clk 0:02:15]}  b6 {[%clk 0:01:20]} 19. Bf4 {[%clk 0:02:15]}  Bxd3 {[%clk 0:01:08]} 20. Rxd3 {[%clk 0:02:14]}  Kd7 {[%clk 0:01:05]} 21. Kd2 {[%clk 0:02:10]}  Bf6 {[%clk 0:01:03]} 22. Rh1 {[%clk 0:01:49]}  g5 {[%clk 0:00:53]} 23. Bg3 {[%clk 0:01:45]}  Rag8 {[%clk 0:00:52]} 24. Rf3 {[%clk 0:01:45]}  Ke7 {[%clk 0:00:36]} 25. hxg5 {[%clk 0:01:30]}  hxg5 {[%clk 0:00:36]} 26. Ra1 {[%clk 0:01:21]}  g4 {[%clk 0:00:33]} 27. Rd3 {[%clk 0:01:21]}  Bg5+ {[%clk 0:00:32]} 28. Ke2 {[%clk 0:01:20]}  Kd7 {[%clk 0:00:32]} 29. b4 {[%clk 0:01:20]}  Ra8 {[%clk 0:00:30]} 30. bxa5 {[%clk 0:01:15]}  Rxa5 {[%clk 0:00:31]} 31. Rdd1 {[%clk 0:01:14]}  Rha8 {[%clk 0:00:27]} 32. Rxa5 {[%clk 0:01:13]}  bxa5 {[%clk 0:00:24]} 33. Kd3 {[%clk 0:01:13]}  Kc6 {[%clk 0:00:11]} 34. Rh1 {[%clk 0:01:12]}  Ra7 {[%clk 0:00:10]} 35. Rh8 {[%clk 0:01:10]}  a4 {[%clk 0:00:08]} 36. Rc8+ {[%clk 0:01:06]}  Kd7 {[%clk 0:00:08]} 37. Rg8 {[%clk 0:01:06]}  Be7 {[%clk 0:00:03]} 38. Rg7 {[%clk 0:01:05]}  Ke8 {[%clk 0:00:03]} 39. Rxg4 {[%clk 0:01:05]}  a3 {[%clk 0:00:03]} 40. Rg8+ {[%clk 0:01:03]}  Kd7 {[%clk 0:00:03]} 41. bxa3 {[%clk 0:01:03]}  Rxa3 {[%clk 0:00:04]} 42. Rb8 {[%clk 0:01:03]}  Bg5 {[%clk 0:00:02]} 43. Rb7+ {[%clk 0:00:59]}  Ke8 {[%clk 0:00:03]} 44. Bd6 {[%clk 0:00:58]}  Ra2 {[%clk 0:00:03]} 45. f4 {[%clk 0:00:57]}  Bh4 {[%clk 0:00:03]} 46. g4 {[%clk 0:00:56]}  Rg2 {[%clk 0:00:02]} 47. g5 {[%clk 0:00:56]}  Rg3+ {[%clk 0:00:03]} 48. Kc2 {[%clk 0:00:56]}  Rf3 {[%clk 0:00:02]} 49. Re7+ {[%clk 0:00:55]}  Kd8 {[%clk 0:00:02]} 50. Rxf7 {[%clk 0:00:50]}  Be1 {[%clk 0:00:03]} 51. g6 {[%clk 0:00:43]}  Rxc3+ {[%clk 0:00:02]} 52. Kd1 {[%clk 0:00:43]} 1-0


[Site "https://www.chess.com"]

[Event "Titled Tuesday Blitz May 2 Late 2023"]
[White "Papasimakopoulos, Alexandros"]
[Black "Ibarra Jerez, Jose Carlos"]
[WhiteFideId "4244125"]
[BlackFideId "2226332"]
[WhiteElo "2359"]
[BlackElo "2638"]
[Result "1-0"]
[Round "11"]
[TimeControl "180+2"]
[Date "2023.05.02"]
[WhiteClock "0:00:21"]
[BlackClock "0:00:20"]

1. d4 {[%clk 0:03:00]}  Nf6 {[%clk 0:02:59]} 2. c4 {[%clk 0:03:00]}  d6 {[%clk 0:02:59]} 3. Nf3 {[%clk 0:02:58]}  g6 {[%clk 0:02:59]} 4. Nc3 {[%clk 0:02:57]}  Bf5 {[%clk 0:02:59]} 5. Nh4 {[%clk 0:02:56]}  Bd7 {[%clk 0:02:58]} 6. e4 {[%clk 0:02:57]}  e5 {[%clk 0:02:59]} 7. Nf3 {[%clk 0:02:57]}  exd4 {[%clk 0:02:58]} 8. Nxd4 {[%clk 0:02:57]}  Bg7 {[%clk 0:02:59]} 9. Be2 {[%clk 0:02:58]}  O-O {[%clk 0:03:00]} 10. O-O {[%clk 0:02:58]}  Re8 {[%clk 0:03:01]} 11. f3 {[%clk 0:02:58]}  Nc6 {[%clk 0:03:01]} 12. Be3 {[%clk 0:02:57]}  Nh5 {[%clk 0:03:02]} 13. Nxc6 {[%clk 0:02:40]}  bxc6 {[%clk 0:02:58]} 14. g4 {[%clk 0:02:40]}  Nf6 {[%clk 0:02:57]} 15. Qd2 {[%clk 0:02:41]}  Be6 {[%clk 0:02:53]} 16. b3 {[%clk 0:02:40]}  Nd7 {[%clk 0:02:49]} 17. Rad1 {[%clk 0:02:38]}  Qb8 {[%clk 0:02:31]} 18. Kg2 {[%clk 0:02:33]}  a5 {[%clk 0:02:25]} 19. h4 {[%clk 0:02:31]}  Qb4 {[%clk 0:02:23]} 20. Bd4 {[%clk 0:02:31]}  Bxd4 {[%clk 0:02:17]} 21. Qxd4 {[%clk 0:02:32]}  a4 {[%clk 0:02:14]} 22. Nxa4 {[%clk 0:02:28]}  Rxa4 {[%clk 0:02:14]} 23. bxa4 {[%clk 0:02:29]}  Qxa4 {[%clk 0:02:15]} 24. Rd2 {[%clk 0:02:23]}  c5 {[%clk 0:02:15]} 25. Qc3 {[%clk 0:02:21]}  Ne5 {[%clk 0:02:16]} 26. Rc1 {[%clk 0:02:15]}  Qa8 {[%clk 0:02:08]} 27. g5 {[%clk 0:02:14]}  Nc6 {[%clk 0:02:05]} 28. Qf6 {[%clk 0:02:06]}  Nd4 {[%clk 0:02:04]} 29. h5 {[%clk 0:01:59]}  Qd8 {[%clk 0:01:57]} 30. Qxd8 {[%clk 0:01:58]}  Rxd8 {[%clk 0:01:58]} 31. h6 {[%clk 0:01:55]}  Ra8 {[%clk 0:01:58]} 32. Rc3 {[%clk 0:01:52]}  Kf8 {[%clk 0:01:51]} 33. Kf2 {[%clk 0:01:52]}  Ke7 {[%clk 0:01:50]} 34. Ke3 {[%clk 0:01:52]}  Ra4 {[%clk 0:01:48]} 35. a3 {[%clk 0:01:48]}  f6 {[%clk 0:01:35]} 36. f4 {[%clk 0:01:46]}  fxg5 {[%clk 0:01:34]} 37. fxg5 {[%clk 0:01:47]}  Bd7 {[%clk 0:01:32]} 38. Bd1 {[%clk 0:01:31]}  Ra8 {[%clk 0:01:30]} 39. Rxd4 {[%clk 0:01:24]}  cxd4+ {[%clk 0:01:30]} 40. Kxd4 {[%clk 0:01:25]}  Ra5 {[%clk 0:01:29]} 41. c5 {[%clk 0:01:19]}  Be6 {[%clk 0:01:21]} 42. Bc2 {[%clk 0:01:06]}  Rb5 {[%clk 0:01:19]} 43. cxd6+ {[%clk 0:00:58]}  Kxd6 {[%clk 0:01:13]} 44. e5+ {[%clk 0:00:58]}  Ke7 {[%clk 0:00:51]} 45. Rxc7+ {[%clk 0:00:58]}  Kf8 {[%clk 0:00:51]} 46. Bxg6 {[%clk 0:00:44]}  Rd5+ {[%clk 0:00:44]} 47. Ke4 {[%clk 0:00:44]}  Ra5 {[%clk 0:00:36]} 48. Bxh7 {[%clk 0:00:38]}  Ra4+ {[%clk 0:00:36]} 49. Ke3 {[%clk 0:00:37]}  Rxa3+ {[%clk 0:00:36]} 50. Kf2 {[%clk 0:00:33]}  Rh3 {[%clk 0:00:31]} 51. g6 {[%clk 0:00:20]}  Rxh6 {[%clk 0:00:31]} 52. g7+ {[%clk 0:00:21]}  Ke8 {[%clk 0:00:31]} 53. g8=Q+ {[%clk 0:00:19]}  Bxg8 {[%clk 0:00:31]} 54. Bxg8 {[%clk 0:00:20]}  Kd8 {[%clk 0:00:28]} 55. Ra7 {[%clk 0:00:20]}  Rg6 {[%clk 0:00:22]} 56. Bf7 {[%clk 0:00:19]}  Rg5 {[%clk 0:00:21]} 57. e6 {[%clk 0:00:20]}  Re5 {[%clk 0:00:21]} 58. Kf3 {[%clk 0:00:20]}  Re1 {[%clk 0:00:21]} 59. Kf4 {[%clk 0:00:20]}  Re2 {[%clk 0:00:19]} 60. Kg5 {[%clk 0:00:20]}  Rg2+ {[%clk 0:00:19]} 61. Kf6 {[%clk 0:00:20]}  Rf2+ {[%clk 0:00:19]} 62. Kg7 {[%clk 0:00:21]}  Re2 {[%clk 0:00:20]} 63. Kf8 {[%clk 0:00:21]} 1-0


[Site "https://www.chess.com"]

[Event "Titled Tuesday Blitz May 2 Late 2023"]
[White "Muradli, Mahammad"]
[Black "Averjanov, Alexey"]
[WhiteFideId "13409301"]
[BlackFideId "14109867"]
[WhiteElo "2558"]
[BlackElo "2399"]
[Result "1-0"]
[Round "11"]
[TimeControl "180+2"]
[Date "2023.05.02"]
[WhiteClock "0:01:13"]
[BlackClock "0:02:19"]

1. Nf3 {[%clk 0:03:00]}  d5 {[%clk 0:02:58]} 2. c4 {[%clk 0:03:00]}  e6 {[%clk 0:02:58]} 3. g3 {[%clk 0:03:00]}  Nf6 {[%clk 0:02:57]} 4. Bg2 {[%clk 0:03:00]}  Be7 {[%clk 0:02:56]} 5. O-O {[%clk 0:03:01]}  O-O {[%clk 0:02:56]} 6. d4 {[%clk 0:02:58]}  c6 {[%clk 0:02:51]} 7. Nbd2 {[%clk 0:02:55]}  Nbd7 {[%clk 0:02:51]} 8. Qc2 {[%clk 0:02:55]}  b6 {[%clk 0:02:50]} 9. e4 {[%clk 0:02:55]}  dxe4 {[%clk 0:02:51]} 10. Nxe4 {[%clk 0:02:56]}  Bb7 {[%clk 0:02:51]} 11. Ne5 {[%clk 0:02:54]}  Nxe5 {[%clk 0:02:50]} 12. dxe5 {[%clk 0:02:55]}  Nxe4 {[%clk 0:02:50]} 13. Bxe4 {[%clk 0:02:54]}  g6 {[%clk 0:02:50]} 14. Bh6 {[%clk 0:02:52]}  Re8 {[%clk 0:02:50]} 15. h4 {[%clk 0:02:49]}  Qc7 {[%clk 0:02:49]} 16. Bf4 {[%clk 0:02:14]}  c5 {[%clk 0:02:49]} 17. Rad1 {[%clk 0:02:13]}  Rad8 {[%clk 0:02:49]} 18. b3 {[%clk 0:02:07]}  h5 {[%clk 0:02:47]} 19. Bxg6 {[%clk 0:01:53]}  fxg6 {[%clk 0:02:37]} 20. Qxg6+ {[%clk 0:01:54]}  Kh8 {[%clk 0:02:37]} 21. Qxh5+ {[%clk 0:01:51]}  Kg8 {[%clk 0:02:38]} 22. Qg6+ {[%clk 0:01:49]}  Kh8 {[%clk 0:02:38]} 23. Qh6+ {[%clk 0:01:46]}  Kg8 {[%clk 0:02:38]} 24. Qxe6+ {[%clk 0:01:46]}  Kh8 {[%clk 0:02:38]} 25. Qh6+ {[%clk 0:01:43]}  Kg8 {[%clk 0:02:38]} 26. Qg6+ {[%clk 0:01:41]}  Kh8 {[%clk 0:02:37]} 27. e6 {[%clk 0:01:24]}  Bd6 {[%clk 0:02:32]} 28. Rxd6 {[%clk 0:01:21]}  Qg7 {[%clk 0:02:25]} 29. Qh5+ {[%clk 0:01:14]}  Kg8 {[%clk 0:02:23]} 30. Rd7 {[%clk 0:01:13]}  Rxd7 {[%clk 0:02:19]} 31. Qxe8+ {[%clk 0:01:13]} 1-0


[Site "https://www.chess.com"]

[Event "Titled Tuesday Blitz May 2 Late 2023"]
[White "Seemann, Jakub"]
[Black "Sieciechowicz, Marcin"]
[WhiteFideId "21874697"]
[BlackFideId "1130170"]
[WhiteElo "2364"]
[BlackElo "2302"]
[Result "0-1"]
[Round "11"]
[TimeControl "180+2"]
[Date "2023.05.02"]
[WhiteClock "0:00:02"]
[BlackClock "0:00:12"]

1. e4 {[%clk 0:03:00]}  e6 {[%clk 0:02:59]} 2. d4 {[%clk 0:02:58]}  d5 {[%clk 0:02:58]} 3. Nc3 {[%clk 0:02:59]}  Bb4 {[%clk 0:02:56]} 4. exd5 {[%clk 0:02:58]}  exd5 {[%clk 0:02:56]} 5. Bd3 {[%clk 0:02:59]}  Nf6 {[%clk 0:02:55]} 6. a3 {[%clk 0:02:56]}  Bxc3+ {[%clk 0:02:54]} 7. bxc3 {[%clk 0:02:57]}  O-O {[%clk 0:02:55]} 8. Ne2 {[%clk 0:02:56]}  b6 {[%clk 0:02:55]} 9. O-O {[%clk 0:02:54]}  Ba6 {[%clk 0:02:54]} 10. Bg5 {[%clk 0:02:51]}  h6 {[%clk 0:02:53]} 11. Bh4 {[%clk 0:02:51]}  Bxd3 {[%clk 0:02:53]} 12. cxd3 {[%clk 0:02:51]}  Nbd7 {[%clk 0:02:51]} 13. Qd2 {[%clk 0:02:40]}  Qe7 {[%clk 0:02:50]} 14. Rfe1 {[%clk 0:02:39]}  Qd6 {[%clk 0:02:50]} 15. Bg3 {[%clk 0:02:36]}  Qc6 {[%clk 0:02:50]} 16. Rec1 {[%clk 0:02:17]}  Rac8 {[%clk 0:02:47]} 17. c4 {[%clk 0:02:16]}  dxc4 {[%clk 0:02:47]} 18. dxc4 {[%clk 0:02:14]}  Ne4 {[%clk 0:02:47]} 19. Qf4 {[%clk 0:02:08]}  Nxg3 {[%clk 0:02:47]} 20. Nxg3 {[%clk 0:02:09]}  Rfe8 {[%clk 0:02:28]} 21. Nf5 {[%clk 0:01:57]}  Nf8 {[%clk 0:02:26]} 22. d5 {[%clk 0:01:56]}  Qc5 {[%clk 0:02:15]} 23. h4 {[%clk 0:01:45]}  Ng6 {[%clk 0:02:14]} 24. Qg4 {[%clk 0:01:41]}  Qf8 {[%clk 0:00:56]} 25. h5 {[%clk 0:01:39]}  Ne5 {[%clk 0:00:55]} 26. Qf4 {[%clk 0:01:21]}  Kh7 {[%clk 0:00:48]} 27. Rc3 {[%clk 0:01:19]}  g6 {[%clk 0:00:28]} 28. Ng3 {[%clk 0:00:47]}  Qg7 {[%clk 0:00:28]} 29. Rac1 {[%clk 0:00:20]}  g5 {[%clk 0:00:19]} 30. Qe4+ {[%clk 0:00:17]}  Kg8 {[%clk 0:00:17]} 31. Qc2 {[%clk 0:00:17]}  Nd7 {[%clk 0:00:16]} 32. Nf5 {[%clk 0:00:15]}  Qf6 {[%clk 0:00:16]} 33. Rf3 {[%clk 0:00:16]}  Ne5 {[%clk 0:00:16]} 34. Re3 {[%clk 0:00:16]}  Ng4 {[%clk 0:00:16]} 35. Rxe8+ {[%clk 0:00:15]}  Rxe8 {[%clk 0:00:15]} 36. c5 {[%clk 0:00:11]}  bxc5 {[%clk 0:00:15]} 37. Ng3 {[%clk 0:00:09]}  Ne5 {[%clk 0:00:13]} 38. Ne4 {[%clk 0:00:04]}  Qf4 {[%clk 0:00:13]} 39. Nxc5 {[%clk 0:00:05]}  Ng4 {[%clk 0:00:12]} 40. g3 {[%clk 0:00:04]}  Qf3 {[%clk 0:00:12]} 41. Nd3 {[%clk 0:00:03]}  Re2 {[%clk 0:00:12]} 42. Qxc7 {[%clk 0:00:02]}  Nxf2 {[%clk 0:00:12]} 43. Qd8+ {[%clk 0:00:02]}  Kg7 {[%clk 0:00:12]} 0-1


[Site "https://www.chess.com"]

[Event "Titled Tuesday Blitz May 2 Late 2023"]
[White "Benedetti, Julio"]
[Black "Pakleza, Zbigniew"]
[WhiteFideId "172545"]
[BlackFideId "1119290"]
[WhiteElo "2263"]
[BlackElo "2410"]
[Result "0-1"]
[Round "11"]
[TimeControl "180+2"]
[Date "2023.05.02"]
[WhiteClock "0:00:01"]
[BlackClock "0:00:02"]

1. e4 {[%clk 0:03:00]}  d6 {[%clk 0:02:59]} 2. d4 {[%clk 0:03:01]}  Nf6 {[%clk 0:03:00]} 3. Nc3 {[%clk 0:03:01]}  c6 {[%clk 0:03:00]} 4. Nf3 {[%clk 0:03:00]}  Bg4 {[%clk 0:03:00]} 5. h3 {[%clk 0:02:59]}  Bh5 {[%clk 0:03:00]} 6. g4 {[%clk 0:02:49]}  Bg6 {[%clk 0:03:01]} 7. Bd3 {[%clk 0:02:46]}  e6 {[%clk 0:03:01]} 8. Qe2 {[%clk 0:02:44]}  d5 {[%clk 0:03:00]} 9. exd5 {[%clk 0:02:43]}  cxd5 {[%clk 0:02:54]} 10. Bb5+ {[%clk 0:02:41]}  Nfd7 {[%clk 0:02:04]} 11. Nxd5 {[%clk 0:02:28]}  a6 {[%clk 0:01:50]} 12. Bf4 {[%clk 0:02:22]}  axb5 {[%clk 0:01:18]} 13. Nc7+ {[%clk 0:02:19]}  Ke7 {[%clk 0:01:18]} 14. Bg5+ {[%clk 0:02:10]}  Nf6 {[%clk 0:01:16]} 15. Nxa8 {[%clk 0:01:02]}  Qa5+ {[%clk 0:01:16]} 16. Qd2 {[%clk 0:01:02]}  Qxa8 {[%clk 0:01:17]} 17. Qb4+ {[%clk 0:01:02]}  Ke8 {[%clk 0:01:11]} 18. Qxb5+ {[%clk 0:01:03]}  Nc6 {[%clk 0:01:06]} 19. O-O {[%clk 0:00:54]}  Qa6 {[%clk 0:00:43]} 20. a4 {[%clk 0:00:33]}  Bd6 {[%clk 0:00:37]} 21. Bxf6 {[%clk 0:00:29]}  gxf6 {[%clk 0:00:37]} 22. d5 {[%clk 0:00:29]}  exd5 {[%clk 0:00:21]} 23. Rfe1+ {[%clk 0:00:26]}  Kf8 {[%clk 0:00:20]} 24. Qxd5 {[%clk 0:00:25]}  Ne5 {[%clk 0:00:16]} 25. Nxe5 {[%clk 0:00:16]}  Bxe5 {[%clk 0:00:17]} 26. Rxe5 {[%clk 0:00:15]}  fxe5 {[%clk 0:00:15]} 27. Qxe5 {[%clk 0:00:15]}  f6 {[%clk 0:00:07]} 28. Qc7 {[%clk 0:00:08]}  Bf7 {[%clk 0:00:04]} 29. Re1 {[%clk 0:00:05]}  Qxa4 {[%clk 0:00:03]} 30. Re7 {[%clk 0:00:04]}  Qc4 {[%clk 0:00:02]} 31. Qxb7 {[%clk 0:00:02]}  h5 {[%clk 0:00:02]} 32. g5 {[%clk 0:00:01]}  fxg5 {[%clk 0:00:02]} 33. Re4 {[%clk 0:00:01]}  Qd5 {[%clk 0:00:02]} 0-1


[Site "https://www.chess.com"]